bitfinex-derivatives/quotes_SOLF0:USTF0_20250416
["timestamp","ask_amount","ask_price","bid_price","bid_amount"]
[1744842920317,0.05043272,132.11,132.08,17.04418106]
[1744842920921,0.05043272,132.11,132.09,7.5708]
[1744842921324,0.05043272,132.11,132.08,17.04418106]
[1744842922124,0.05043272,132.11,132.1,7.5706]
[1744842922926,0.05043272,132.11,132.09,7.5709]
[1744842923327,0.05043272,132.11,132.08,17.04418106]
[1744842923826,0.05043272,132.11,132.09,7.5712]
[1744842924026,0.05043272,132.11,132.08,17.04418106]
[1744842924627,0.05043272,132.11,132.1,7.5706]
[1744842924823,28.38,132.16,132.1,13.03385397]
[1744842925322,7.5678,132.15,132.12,7.569]
[1744842925826,7.62230994,132.15,132.12,7.62283501]
[1744842926029,7.5684,132.14,132.12,0.05383501]
[1744842926327,0.05450994,132.15,132.12,0.05383501]
[1744842926721,7.62260994,132.15,132.12,7.62293501]
[1744842927623,0.05450994,132.15,132.13,7.5688]
[1744842927828,0.05450994,132.15,132.12,0.05383501]
[1744842929030,7.5689,132.13,132.12,0.05383501]
[1744842935335,15.91139321,132.13,132.12,0.05383501]
[1744842935634,7.5706,132.1,132.08,3.9599]
[1744842936637,7.62217484,132.1,132.08,4.00894442]
[1744842937235,7.62217484,132.1,132.08,12.35143763]
[1744842938138,7.62217484,132.1,132.08,19.92313763]
[1744842940842,0.05157484,132.1,132.08,19.92313763]
[1744842942543,0.05157484,132.1,132.09,7.5712]
[1744842943043,0.05157484,132.1,132.09,15.91369321]
[1744842945849,0.05157484,132.1,132.09,7.5712]
[1744842947554,8.34249321,132.16,132.12,7.5691]
[1744842947749,8.34249321,132.17,132.12,15.91159321]
[1744842947950,8.34249321,132.16,132.11,15.91219321]
[1744842948150,8.34249321,132.15,132.11,7.5697]
[1744842948451,7.5687,132.14,132.12,0.05513673]
[1744842948650,7.61926584,132.14,132.12,0.05513673]
[1744842949054,7.5689,132.13,132.12,0.05513673]
[1744842949355,15.91139321,132.13,132.12,0.05513673]
[1744842952457,0.05056584,132.14,132.12,0.05513673]
[1744842952951,7.61906584,132.14,132.12,0.05513673]
[1744842953557,7.5689,132.13,132.12,0.05513673]
[1744842955052,7.61916584,132.14,132.12,0.05513673]
[1744842955857,7.5689,132.13,132.12,0.05513673]
[1744842956551,7.61916584,132.14,132.12,0.05513673]
[1744842961662,0.05056584,132.14,132.12,0.05513673]
[1744842961862,0.05056584,132.14,132.12,8.39762994]
[1744842962363,0.05056584,132.14,132.13,7.5689]
[1744842963865,0.05056584,132.14,132.13,15.91139321]
[1744842964162,0.05056584,132.14,132.13,17.96429321]
[1744842966665,0.05056584,132.14,132.12,0.05513673]
[1744842966860,8.39305905,132.14,132.12,0.05513673]
[1744842968165,7.5689,132.13,132.12,0.05513673]
[1744842972878,15.96185905,132.14,132.12,0.05513673]
[1744842973175,0.05056584,132.14,132.12,0.05513673]
[1744842973475,7.61916584,132.14,132.12,0.05513673]
[1744842974075,0.05056584,132.14,132.12,7.62433673]
[1744842976376,15.91139321,132.13,132.12,0.05513673]
[1744842982485,7.5712,132.09,132.07,10.45099321]
[1744842982685,36.68249321,132.11,132.05,10.37789321]
[1744842982982,8.34249321,132.09,132.05,17.95109321]
[1744842983183,7.572,132.08,132.05,17.95109321]
[1744842983380,7.572,132.08,132.05,9.6086]
[1744842983579,7.62871779,132.08,132.05,9.66044303]
[1744842983778,7.62871779,132.08,132.05,7.62504303]
[1744842983982,8.34249321,132.07,132.05,0.05184303]
[1744842984182,8.34249321,132.06,132.05,0.05184303]
[1744842984481,7.5746,132.03,132.01,1.9305]
[1744842984694,8.34249321,132.04,132.0,28.34]
[1744842984987,8.34249321,132.03,131.98,8.34249321]
[1744842985684,0.0526052,132.02,131.99,7.62856556]
[1744842987179,0.0526052,132.02,132.0,8.34249321]
[1744842987384,0.0526052,132.02,132.01,8.34249321]
[1744842988274,0.0526052,132.02,132.01,15.91819321]
[1744842990285,0.0526052,132.02,132.01,7.5757]
[1744842990885,0.0526052,132.02,132.0,44.23859321]
[1744842991384,0.0526052,132.02,132.0,35.8961]
[1744842991876,0.0526052,132.02,131.99,0.05186556]
[1744842992285,7.6282052,132.02,131.99,7.62876556]
[1744842992488,0.0526052,132.02,131.99,0.05186556]
[1744842993386,7.6281052,132.02,131.99,7.62876556]
[1744842994188,0.0526052,132.02,131.99,0.05186556]
[1744842994382,0.0526052,132.02,132.0,8.34249321]
[1744842994582,0.0526052,132.02,132.01,8.34249321]
[1744842994783,35.8936,132.05,132.02,7.5747]
[1744842995086,28.34,132.08,132.04,8.34249321]
[1744842995285,7.5709,132.1,132.07,15.91469321]
[1744842995587,581.68249321,132.14,132.09,8.34249321]
[1744842995788,7.5698,132.12,132.09,8.34249321]
[1744842995986,7.5698,132.12,132.1,0.05255379]
[1744842996188,0.04907433,132.13,132.1,0.05255379]
[1744842996391,8.34249321,132.11,132.1,0.05255379]
[1744842996790,36.68249321,132.11,132.1,0.05255379]
[1744842996988,36.68249321,132.11,132.04,7.5738]
[1744842997193,8.34249321,132.07,132.03,2.0296]
[1744842997380,8.34249321,132.08,132.03,17.94649321]
[1744842997586,8.34249321,132.08,132.04,8.34249321]
[1744842997993,0.04909516,132.07,132.05,0.05225977]
[1744842998889,8.39158837,132.07,132.05,0.05225977]
[1744842999194,0.04909516,132.07,132.05,0.05225977]
[1744843002199,7.5729,132.06,132.05,0.05225977]
[1744843004101,7.62169516,132.07,132.05,0.05225977]
[1744843005301,7.5729,132.06,132.05,0.05225977]
[1744843005597,0.04909516,132.07,132.05,7.62565977]
[1744843006503,0.04909516,132.07,132.05,0.05225977]
[1744843007508,0.04909516,132.07,132.05,7.62535977]
[1744843008812,0.04909516,132.07,132.06,7.5729]
[1744843009511,35.8903,132.11,132.08,7.5714]
[1744843009711,7.5703,132.11,132.08,7.5714]
[1744843010313,7.5714,132.09,132.05,13.04780547]
[1744843010506,7.5714,132.09,132.08,0.04796564]
[1744843010707,586.36780547,132.14,132.08,0.04796564]
[1744843010912,7.6260402,132.1,132.08,0.04796564]
[1744843012810,7.5712,132.09,132.08,0.04796564]
[1744843019117,15.91982337,132.09,132.08,0.04796564]
[1744843019919,7.6261402,132.1,132.08,0.04796564]
[1744843020119,0.0553402,132.1,132.08,0.04796564]
[1744843020621,8.40396357,132.1,132.08,0.04796564]
[1744843021121,15.91982337,132.09,132.08,0.04796564]
[1744843023314,15.97486357,132.1,132.08,0.04796564]
[1744843023518,0.0553402,132.1,132.08,8.39658901]
[1744843024327,0.0553402,132.1,132.08,15.96788901]
[1744843025330,7.6260402,132.1,132.08,0.04796564]
[1744843026628,7.5712,132.09,132.08,0.04796564]
[1744843027128,0.0553402,132.1,132.08,8.39658901]
[1744843027931,0.0553402,132.1,132.09,15.91982337]
[1744843028133,28.3,132.14,132.09,8.34862337]
[1744843028333,28.3,132.14,132.11,8.34862337]
[1744843028529,35.8686,132.14,132.11,15.91832337]
[1744843028829,8.34862337,132.13,132.09,5.8117]
[1744843029029,7.5698,132.12,132.09,13.3828]
[1744843029231,7.5698,132.12,132.1,0.05418257]
[1744843030333,7.62097458,132.13,132.1,7.62468257]
[1744843030536,7.62097458,132.13,132.1,15.97330594]
[1744843030830,0.05187458,132.13,132.1,15.97330594]
[1744843031033,7.5695,132.12,132.1,0.05418257]
[1744843031830,7.57,132.11,132.1,0.05418257]
[1744843033232,15.91862337,132.11,132.1,0.05418257]
[1744843034437,15.91862337,132.11,132.05,2.1246]
[1744843034438,7.5723,132.07,132.05,2.1246]
[1744843034638,7.5723,132.07,132.04,28.3]
[1744843034936,7.5723,132.07,132.04,7.5737]
[1744843035539,7.62744072,132.07,132.04,7.63070692]
[1744843035733,0.05514072,132.07,132.05,8.34862337]
[1744843035928,0.05514072,132.07,132.06,8.34862337]
[1744843036435,7.5703,132.11,132.06,8.34862337]
[1744843036736,7.5703,132.11,132.08,7.5716]
[1744843036929,7.5703,132.11,132.07,8.34862337]
[1744843037126,28.3,132.13,132.1,8.34862337]
[1744843037331,36.70156974,132.13,132.1,7.62073409]
[1744843037535,15.91862337,132.11,132.1,0.05043409]
[1744843045341,7.57,132.11,132.1,0.05043409]
[1744843046642,28.3,132.12,132.1,7.62103409]
[1744843047035,0.05294637,132.13,132.1,7.62103409]
[1744843047337,0.05294637,132.13,132.1,0.05043409]
[1744843048148,7.5699,132.12,132.1,0.05043409]
[1744843054749,7.5699,132.12,132.1,7.62103409]
[1744843055350,7.62204637,132.13,132.11,7.5699]
[1744843055540,0.05294637,132.13,132.1,0.05043409]
[1744843055741,0.05294637,132.13,132.11,8.34862337]
[1744843055943,0.05294637,132.13,132.12,8.34862337]
[1744843056139,0.05294637,132.13,132.12,15.91802337]
[1744843057448,7.5666,132.17,132.12,8.34862337]
[1744843057649,7.5666,132.17,132.14,8.34862337]
[1744843058045,7.5672,132.16,132.14,8.34862337]
[1744843058547,7.62036405,132.16,132.14,8.39940451]
[1744843059350,7.62036405,132.16,132.14,0.05078114]
[1744843059946,7.5677,132.15,132.14,0.05078114]
[1744843063055,7.62056405,132.16,132.14,0.05078114]
[1744843063954,0.05316405,132.16,132.14,7.61908114]
[1744843064552,7.62076405,132.16,132.14,0.05078114]
[1744843065953,7.62076405,132.16,132.14,7.61908114]
[1744843066153,0.05316405,132.16,132.14,7.61908114]
[1744843067256,0.05316405,132.16,132.15,7.5677]
[1744843067459,0.05316405,132.16,132.14,0.05078114]
[1744843067860,0.05316405,132.16,132.14,7.61878114]
[1744843071459,0.05316405,132.16,132.15,7.5677]
[1744843071656,0.05316405,132.16,132.14,0.05078114]
[1744843072155,0.05316405,132.16,132.14,7.61878114]
[1744843073960,0.05316405,132.16,132.15,7.5677]
[1744843075262,0.05316405,132.16,132.14,15.96740451]
[1744843076661,0.05316405,132.16,132.14,0.05078114]
[1744843077661,0.05316405,132.16,132.14,7.61898114]
[1744843077862,0.05316405,132.16,132.15,8.34862337]
[1744843078053,8.34862337,132.2,132.15,8.34862337]
[1744843078367,7.5658,132.19,132.16,7.567]
[1744843079065,7.6168441,132.19,132.16,7.62214276]
[1744843079568,364.0,132.29,132.18,8.34862337]
[1744843079767,8.34862337,132.25,132.19,8.34862337]
[1744843079962,8.34862337,132.25,132.2,8.34862337]
[1744843080459,8.34862337,132.24,132.19,8.34862337]
[1744843080766,0.05740622,132.23,132.2,0.05037703]
[1744843080967,0.05740622,132.23,132.13,36.60862337]
[1744843080968,8.34862337,132.21,132.13,36.60862337]
[1744843081265,8.34862337,132.18,132.13,36.60862337]
[1744843081466,8.34862337,132.2,132.14,8.34862337]
[1744843081766,8.34862337,132.2,132.17,7.5662]
[1744843081963,8.40668349,132.2,132.17,7.61806986]
[1744843082265,15.97158349,132.2,132.17,7.61806986]
[1744843082466,8.40668349,132.2,132.17,7.61806986]
[1744843082765,0.05806012,132.2,132.18,7.5656]
[1744843083772,0.05806012,132.2,132.19,7.5654]
[1744843083968,0.05806012,132.2,132.19,15.91402337]
[1744843084369,28.26,132.24,132.23,7.5631]
[1744843084568,15.91042337,132.26,132.23,7.5631]
[1744843085270,8.34862337,132.25,132.2,8.34862337]
[1744843085568,8.34862337,132.24,132.23,0.05116543]
[1744843085768,15.91152337,132.24,132.23,0.05116543]
[1744843086473,0.05641665,132.25,132.23,0.05116543]
[1744843086870,0.05641665,132.25,132.23,8.3997888]
[1744843087167,0.05641665,132.25,132.24,7.5626]
[1744843088171,0.05641665,132.25,132.23,7.61406543]
[1744843088668,0.05641665,132.25,132.24,7.5626]
[1744843088866,0.05641665,132.25,132.24,15.91122337]
[1744843089270,0.05641665,132.25,132.24,7.5626]
[1744843089570,28.24,132.3,132.23,1.96816543]
[1744843089774,28.24,132.3,132.24,13.00680252]
[1744843090271,7.5598,132.29,132.26,7.561]
[1744843090572,7.60786072,132.29,132.26,7.6090456]
[1744843091776,7.5603,132.28,132.26,0.0480456]
[1744843091965,0.04806072,132.29,132.26,0.0480456]
[1744843093773,7.60806072,132.29,132.26,0.0480456]
[1744843094074,0.04806072,132.29,132.27,7.5607]
[1744843094576,0.04806072,132.29,132.26,7.6092456]
[1744843094970,0.04806072,132.29,132.26,0.0480456]
[1744843095170,0.04806072,132.29,132.26,7.6091456]
[1744843095370,0.04806072,132.29,132.26,0.0480456]
[1744843096377,7.5607,132.28,132.26,0.0480456]
[1744843097279,0.04806072,132.29,132.26,0.0480456]
[1744843098978,0.04806072,132.29,132.27,7.5608]
[1744843099782,0.04806072,132.29,132.28,7.5603]
[1744843100782,0.04806072,132.29,132.27,7.5606]
[1744843103892,7.60786072,132.29,132.26,7.6092456]
[1744843104190,0.04806072,132.29,132.26,0.0480456]
[1744843104390,0.04806072,132.29,132.27,7.5608]
[1744843105294,0.04806072,132.29,132.28,7.5603]
[1744843111299,0.04806072,132.29,132.28,15.88132715]
[1744843112690,0.04806072,132.29,132.27,1.9341]
[1744843112895,0.04806072,132.29,132.27,7.5606]
[1744843115502,7.60776072,132.29,132.26,15.93007275]
[1744843115698,0.04806072,132.29,132.26,8.36907275]
[1744843115994,0.04806072,132.29,132.27,7.5607]
[1744843116398,0.04806072,132.29,132.26,8.36907275]
[1744843116594,0.04806072,132.29,132.26,0.0480456]
[1744843116800,7.5603,132.28,132.26,0.0480456]
[1744843117304,0.04806072,132.29,132.27,7.5603]
[1744843117999,0.04806072,132.29,132.28,7.5603]
[1744843118297,8.32102715,132.36,132.28,8.32102715]
[1744843118496,581.04102715,132.38,132.33,8.32102715]
[1744843118890,7.5556,132.37,132.34,8.32102715]
[1744843119090,7.5556,132.37,132.33,7.5571]
[1744843119389,7.5556,132.37,132.34,0.056677]
[1744843120798,7.5556,132.37,132.34,7.613377]
[1744843122999,580.2748,132.38,132.34,7.613377]
[1744843123201,572.72,132.38,132.34,0.056677]
[1744843123499,7.5554,132.37,132.34,0.056677]
[1744843123905,28.22,132.38,132.34,0.056677]
[1744843124199,28.2,132.41,132.36,12.9884859]
[1744843124401,28.2,132.41,132.37,7.60675195]
[1744843124601,35.7532,132.41,132.37,7.60675195]
[1744843124802,28.2,132.41,132.37,0.05185195]
[1744843125002,7.5537,132.4,132.37,0.05185195]
[1744843125303,28.2,132.41,132.37,0.05185195]
[1744843125600,35.7534,132.41,132.37,7.60665195]
[1744843126095,7.5536,132.4,132.37,0.05185195]
[1744843126600,28.2,132.41,132.37,0.05185195]
[1744843126799,28.2,132.41,132.37,7.60685195]
[1744843127300,7.5535,132.4,132.37,0.05185195]
[1744843127704,7.5535,132.4,132.37,7.60695195]
[1744843128101,7.5535,132.4,132.37,0.05185195]
[1744843128807,28.2,132.41,132.37,0.05185195]
[1744843129301,35.7532,132.41,132.37,7.60655195]
[1744843129504,28.2,132.41,132.37,0.05185195]
[1744843129801,41.1884859,132.44,132.37,0.05185195]
[1744843130404,7.5526,132.42,132.38,7.5542]
[1744843130603,7.5526,132.42,132.39,0.0572277]
[1744843131808,7.552,132.43,132.39,7.6111277]
[1744843131998,28.2,132.44,132.39,0.0572277]
[1744843132699,7.5518,132.43,132.39,0.0572277]
[1744843132896,28.2,132.44,132.39,0.0572277]
[1744843134104,7.5518,132.43,132.39,0.0572277]
[1744843134307,28.2,132.44,132.39,0.0572277]
[1744843134705,35.7515,132.44,132.4,7.5531]
[1744843135108,28.2,132.44,132.4,7.5531]
[1744843136508,35.7514,132.44,132.4,7.5531]
[1744843136707,35.7514,132.44,132.41,7.5528]
[1744843137010,35.7514,132.44,132.39,0.0572277]
[1744843137203,35.7514,132.44,132.4,7.553]
[1744843138309,35.7514,132.44,132.41,7.5527]
[1744843139110,44.05684652,132.44,132.41,7.5527]
[1744843140511,8.30544652,132.42,132.39,0.0572277]
[1744843140700,8.30544652,132.41,132.39,0.0572277]
[1744843141612,8.30544652,132.41,132.39,7.6111277]
[1744843141913,15.85804652,132.42,132.39,7.6111277]
[1744843142113,15.85804652,132.42,132.39,0.0572277]
[1744843142712,7.5529,132.41,132.39,0.0572277]
[1744843143306,15.85804652,132.42,132.39,0.0572277]
[1744843143511,8.30544652,132.41,132.39,0.0572277]
[1744843144117,15.85844652,132.41,132.39,0.0572277]
[1744843145915,7.553,132.41,132.39,0.0572277]
[1744843148213,15.85804652,132.42,132.39,0.0572277]
[1744843148417,7.5526,132.42,132.39,0.0572277]
[1744843148621,8.30544652,132.43,132.39,0.0572277]
[1744843149114,7.5524,132.42,132.39,0.0572277]
[1744843150520,7.5529,132.41,132.39,0.0572277]
[1744843151526,15.85884652,132.4,132.39,0.0572277]
[1744843151720,15.85884652,132.4,132.35,10.33834652]
[1744843152021,36.48544652,132.41,132.36,8.30544652]
[1744843152218,35.7332,132.41,132.37,15.86034652]
[1744843152821,0.05594188,132.4,132.38,0.05757051]
[1744843153025,0.05594188,132.4,132.38,8.36301703]
[1744843154123,0.05594188,132.4,132.39,7.554]
[1744843155023,0.05594188,132.4,132.39,15.85944652]
[1744843155423,28.18,132.44,132.43,7.5517]
[1744843155627,36.48544652,132.47,132.41,8.30544652]
[1744843155813,36.48544652,132.47,132.42,8.30544652]
[1744843156019,28.18,132.47,132.45,7.5503]
[1744843156220,36.48544652,132.5,132.45,8.30544652]
[1744843156419,36.48544652,132.5,132.45,15.85584652]
[1744843156625,8.30544652,132.49,132.46,0.04980347]
[1744843156825,8.30544652,132.48,132.46,0.04980347]
[1744843157028,8.30544652,132.49,132.46,0.04980347]
[1744843157525,15.85414652,132.49,132.46,0.04980347]
[1744843157726,7.5487,132.49,132.46,7.59960347]
[1744843158025,15.85414652,132.49,132.46,7.59960347]
[1744843158223,15.85414652,132.49,132.46,0.04980347]
[1744843159123,15.85414652,132.49,132.46,7.59950347]
[1744843160329,8.30544652,132.49,132.46,7.59950347]
[1744843160630,28.18,132.5,132.46,8.35524999]
[1744843161225,15.85224652,132.52,132.47,8.30544652]
[1744843161429,36.48544652,132.53,132.48,8.30544652]
[1744843161630,36.48544652,132.53,132.49,7.60122392]
[1744843161830,44.03174652,132.53,132.49,7.60122392]
[1744843162431,7.5466,132.52,132.49,7.60122392]
[1744843163732,15.85204652,132.52,132.49,0.05322392]
[1744843164238,8.30544652,132.5,132.49,0.05322392]
[1744843164735,15.85314652,132.5,132.49,0.05322392]
[1744843165231,8.30544652,132.51,132.49,0.05322392]
[1744843165425,15.85214652,132.52,132.49,0.05322392]
[1744843165927,7.5475,132.51,132.49,0.05322392]
[1744843166236,8.30544652,132.51,132.49,0.05322392]
[1744843166534,15.85284652,132.51,132.49,0.05322392]
[1744843166931,8.30544652,132.52,132.49,0.05322392]
[1744843167131,44.03154652,132.53,132.49,0.05322392]
[1744843168134,44.03154652,132.53,132.49,7.60112392]
[1744843168325,28.18,132.53,132.49,8.35867044]
[1744843168638,28.18,132.53,132.49,0.05322392]
[1744843168831,7.5469,132.52,132.49,0.05322392]
[1744843169026,36.48544652,132.53,132.49,0.05322392]
[1744843169231,36.48544652,132.53,132.49,7.60122392]
[1744843169431,35.7263,132.53,132.49,0.05322392]
[1744843169630,35.7263,132.53,132.5,7.5473]
[1744843169631,28.18,132.53,132.5,7.5473]
[1744843169833,15.85114652,132.54,132.49,8.35867044]
[1744843170335,15.85114652,132.54,132.5,7.5472]
[1744843170638,7.5461,132.53,132.49,8.35867044]
[1744843170836,8.30544652,132.53,132.49,7.60132392]
[1744843171236,15.85174652,132.53,132.49,7.60132392]
[1744843171635,8.30544652,132.53,132.49,7.60132392]
[1744843171836,8.30544652,132.53,132.49,0.05322392]
[1744843172337,7.547,132.52,132.49,7.60132392]
[1744843172643,15.85244652,132.52,132.49,0.05322392]
[1744843172843,7.5474,132.51,132.49,0.05322392]
[1744843173046,8.30544652,132.52,132.49,0.05322392]
[1744843174143,7.5474,132.51,132.49,0.05322392]
[1744843175046,15.85214652,132.52,132.49,7.60142392]
[1744843175243,15.85214652,132.52,132.49,0.05322392]
[1744843175641,8.30544652,132.52,132.49,7.60112392]
[1744843175840,43.99174652,132.53,132.49,0.05322392]
[1744843176340,43.99174652,132.53,132.49,7.60112392]
[1744843176645,43.99174652,132.53,132.49,0.05322392]
[1744843177347,43.99174652,132.53,132.5,7.5477]
[1744843178649,7.5467,132.52,132.49,7.60122392]
[1744843179345,43.99174652,132.53,132.49,0.05322392]
[1744843180253,43.99174652,132.53,132.5,7.5477]
[1744843181850,15.85114652,132.54,132.51,7.5469]
[1744843182151,8.30544652,132.54,132.51,0.05163533]
[1744843183550,8.30544652,132.52,132.51,0.05163533]
[1744843184053,15.85204652,132.52,132.51,0.05163533]
[1744843188451,28.14,132.56,132.51,0.05163533]
[1744843188653,8.30544652,132.54,132.51,0.05163533]
[1744843188852,8.30544652,132.55,132.51,0.05163533]
[1744843189151,7.5458,132.54,132.51,0.05163533]
[1744843190459,7.5458,132.54,132.51,7.59873533]
[1744843191357,7.5451,132.55,132.52,7.5466]
[1744843191656,28.14,132.56,132.51,8.35708185]
[1744843191857,36.44544652,132.56,132.51,8.35708185]
[1744843192455,7.5452,132.55,132.51,8.35708185]
[1744843192655,36.44544652,132.56,132.51,8.35708185]
[1744843192959,7.5464,132.53,132.51,0.05163533]
[1744843193252,8.30544652,132.54,132.51,0.05163533]
[1744843193658,28.14,132.56,132.51,0.05163533]
[1744843193863,36.44544652,132.56,132.51,8.35708185]
[1744843194152,7.5466,132.52,132.51,0.05163533]
[1744843194855,7.5463,132.53,132.51,0.05163533]
[1744843195358,7.5457,132.54,132.51,0.05163533]
[1744843195957,7.5461,132.53,132.51,0.05163533]
[1744843196356,8.30544652,132.52,132.46,14.27374652]
[1744843196560,7.548,132.5,132.46,14.27374652]
[1744843196757,8.30544652,132.51,132.46,21.82354652]
[1744843197458,0.05462119,132.5,132.47,0.04827154]
[1744843198259,8.36006771,132.5,132.47,0.04827154]
[1744843198660,7.5486,132.49,132.47,0.04827154]
[1744843199762,15.90806771,132.5,132.47,0.04827154]
[1744843200160,0.05462119,132.5,132.47,0.04827154]
[1744843200362,7.5486,132.49,132.47,0.04827154]
[1744843200558,0.05462119,132.5,132.47,0.04827154]
[1744843201165,7.60282119,132.5,132.47,0.04827154]
[1744843201362,0.05462119,132.5,132.48,8.30544652]
[1744843201763,0.05462119,132.5,132.48,15.85394652]
[1744843202163,0.05462119,132.5,132.48,8.30544652]
[1744843202364,0.05462119,132.5,132.49,15.85374652]
[1744843202559,7.5456,132.54,132.49,8.30544652]
[1744843202759,8.30544652,132.55,132.51,7.5468]
[1744843202760,15.85074652,132.55,132.51,7.5468]
[1744843203063,8.30544652,132.55,132.51,7.5468]
[1744843203465,8.30544652,132.55,132.52,0.05341398]
[1744843203666,7.5457,132.54,132.52,0.05341398]
[1744843204059,8.30544652,132.55,132.52,0.05341398]
[1744843204261,7.546,132.53,132.52,0.05341398]
[1744843205367,7.5457,132.54,132.52,0.05341398]
[1744843205758,8.30544652,132.55,132.52,0.05341398]
[1744843205961,7.546,132.53,132.52,0.05341398]
[1744843206162,28.12,132.56,132.52,0.05341398]
[1744843206569,7.5456,132.54,132.52,0.05341398]
[1744843208567,8.30544652,132.54,132.46,5.9236]
[1744843208872,8.30544652,132.51,132.46,14.22904652]
[1744843209169,7.5481,132.5,132.47,7.5492]
[1744843209469,8.30544652,132.51,132.46,10.29794652]
[1744843209665,0.04935849,132.5,132.47,0.05628725]
[1744843209866,7.5486,132.49,132.47,0.05628725]
[1744843211272,0.04935849,132.5,132.47,8.36173377]
[1744843211870,0.04935849,132.5,132.49,7.5483]
[1744843212069,0.04935849,132.5,132.49,15.85374652]
[1744843213376,0.04935849,132.5,132.49,8.30544652]
[1744843215178,0.04935849,132.5,132.49,15.85374652]
[1744843215367,0.04935849,132.5,132.48,8.30544652]
[1744843215572,0.04935849,132.5,132.47,12.51093377]
[1744843215772,0.04935849,132.5,132.47,2.10858725]
[1744843216979,8.35480501,132.5,132.47,0.05628725]
[1744843217380,0.04935849,132.5,132.47,0.05628725]
[1744843217578,7.59735849,132.5,132.47,0.05628725]
[1744843218181,7.5483,132.49,132.47,0.05628725]
[1744843220484,7.59735849,132.5,132.47,7.60568725]
[1744843222186,0.04935849,132.5,132.47,7.60568725]
[1744843222583,0.04935849,132.5,132.47,0.05628725]
[1744843223685,0.04935849,132.5,132.48,7.5487]
[1744843228492,0.04935849,132.5,132.49,15.85374652]
[1744843229584,28.12,132.56,132.49,8.30544652]
[1744843229789,28.12,132.56,132.5,8.30544652]
[1744843229790,36.42544652,132.56,132.5,8.30544652]
[1744843229993,8.30544652,132.55,132.5,8.30544652]
[1744843230184,15.85074652,132.55,132.51,7.5469]
[1744843230687,0.0203898,132.54,132.52,0.05049748]
[1744843231988,8.32583632,132.54,132.52,0.05049748]
[1744843232187,8.30544652,132.53,132.52,0.05049748]
[1744843232485,36.42544652,132.53,132.52,0.05049748]
[1744843232690,43.97144652,132.53,132.52,0.05049748]
[1744843233393,7.5478,132.5,132.46,10.29794652]
[1744843233690,36.42544652,132.53,132.46,10.29794652]
[1744843233691,8.30544652,132.51,132.46,10.29794652]
[1744843233895,15.85354652,132.5,132.46,17.84754652]
[1744843234393,0.04859443,132.49,132.47,0.0501837]
[1744843236891,7.59699443,132.49,132.47,0.0501837]
[1744843238188,0.04859443,132.49,132.47,0.0501837]
[1744843238496,8.30544652,132.48,132.47,0.0501837]
[1744843238795,7.5513,132.44,132.4,8.30544652]
[1744843238989,15.85674652,132.44,132.4,8.30544652]
[1744843239189,15.85674652,132.44,132.4,15.85854652]
[1744843239589,0.04945594,132.43,132.41,0.05785466]
[1744843239797,0.04945594,132.43,132.41,7.61065466]
[1744843239992,0.04945594,132.43,132.41,0.05785466]
[1744843240192,0.04945594,132.43,132.41,8.36330118]
[1744843240393,0.04945594,132.43,132.42,15.85774652]
[1744843241189,7.5497,132.47,132.43,7.5512]
[1744843241397,7.5497,132.47,132.43,15.85664652]
[1744843242198,0.05298686,132.46,132.44,0.04774774]
[1744843243501,0.05298686,132.46,132.44,7.59884774]
[1744843244105,0.05298686,132.46,132.44,0.04774774]
[1744843245101,7.60308686,132.46,132.44,0.04774774]
[1744843246604,7.5506,132.45,132.44,0.04774774]
[1744843246902,15.85604652,132.45,132.44,0.04774774]
[1744843248902,43.97604652,132.45,132.44,0.04774774]
[1744843258112,7.5517,132.44,132.4,15.85854652]
[1744843258305,36.42544652,132.45,132.4,15.85854652]
[1744843258614,7.5518,132.43,132.4,15.85854652]
[1744843258811,8.30544652,132.44,132.4,8.30544652]
[1744843259017,8.30544652,132.42,132.38,1.9844]
[1744843259209,7.6110974,132.41,132.39,0.05680313]
[1744843260214,0.0577974,132.41,132.39,0.05680313]
[1744843260415,0.0577974,132.41,132.39,8.36224965]
[1744843261216,0.0577974,132.41,132.4,7.5534]
[1744843261515,0.0577974,132.41,132.4,15.85884652]
[1744843261714,28.12,132.5,132.4,15.86544652]
[1744843261914,28.12,132.5,132.47,8.30544652]
[1744843262216,28.12,132.5,132.4,8.30544652]
[1744843262217,36.42544652,132.5,132.45,15.85554652]
[1744843262417,8.30544652,132.49,132.43,36.42544652]
[1744843262612,0.05589977,132.47,132.45,0.05540277]
[1744843263012,0.05589977,132.47,132.45,8.36084929]
[1744843264217,0.05589977,132.47,132.45,15.91114929]
[1744843265414,28.12,132.54,132.46,8.30544652]
[1744843265619,36.42544652,132.54,132.48,8.30544652]
[1744843265815,8.30544652,132.53,132.48,8.30544652]